[Event "German Rapid Championship 2022"]
[Site "Goettingen"]
[Date "2022.09.25"]
[Round "8.4"]
[White "Kopylov, Michael"]
[Black "Feuerstack, Aljoscha"]
[Result "0-1"]
[ECO "D12"]
[WhiteElo "2371"]
[BlackElo "2464"]
[Annotator "TA"]
[PlyCount "90"]
[EventDate "2022.09.24"]
[EventType "swiss"]
[EventCountry "GER"]
[SourceTitle "playchess.com"]
[Source "ChessBase"]
[SourceQuality "1"]
[TimeControl "900+10"]

{[%evp 11,90,27,23,20,34,31,35,14,16,0,14,-13,-14,-18,-11,0,0,-44,0,0,7,-37,-12,-29,-25,-28,-27,-40,0,0,0,0,33,23,135,135,131,137,131,71,85,62,74,28,33,25,27,22,41,-6,0,-6,-3,-14,47,0,14,17,81,87,69,70,84,-24,120,-55,0,0,0,0,0,-133,-156,-549,-542,-540,-505,-979,-973,-1104,-560]} 1. d4 {[%emt 0:00:04]} d5 {[%emt 0:00:07]} 2. c4 {[%emt 0:00:02]} c6 {[%emt 0:00:02]} 3. Nf3 {[%emt 0:00:03]} Nf6 {[%emt 0:00:01]} 4. e3 {[%emt 0:00:02]} Bf5 {[%emt 0:00:04]} 5. Nc3 {[%emt 0:00:02]} e6 {[%emt 0:00:01]} 6. Nh4 {[%emt 0:00:03]} Bg6 {[%emt 0:00:02]} 7. Qb3 {[%emt 0:00:22] D12: Slav Defence: 3 Nf3 Nf6 4 e3 Bf5.} Qc7 {[%emt 0:00:02] The main line 7...Qc7 scores better than 7...Qb6.} 8. Nxg6 {[%emt 0:01:17]} hxg6 {[%emt 0:00:02]} 9. Bd2 {[%emt 0:00:05] White is slightly better.} Nbd7 {[%emt 0:00:03]} 10. Rc1 {[%emt 0:00:35]} Nb6 {[%emt 0:00:09]} 11. cxd5 {[%emt 0:00:22]} exd5 {[%emt 0:00:02]} 12. h3 {[%emt 0:02:19]} Be7 {[%emt 0:00:07]} 13. Be2 {[%emt 0:00:16]} g5 {[%emt 0:01:34] [#]} 14. Rf1 $146 {[%emt 0:02:39]} ({Predecessor:} 14. g4 g6 {½-½ (14) Szabo,G (2546)-Erdos,V (2608) Hungary 2012}) 14... Qd7 {[%emt 0:01:10]} 15. a4 {[%emt 0:00:20]} Nc8 {[%emt 0:00:12]} 16. Kd1 {[%emt 0:00:26]} Nd6 {[%emt 0:03:56]} 17. Kc2 {[%emt 0:00:19]} a6 {[%emt 0:00:05]} 18. a5 {[%emt 0:00:47]} Nfe4 {[%emt 0:02:16]} 19. Be1 {[%emt 0:01:03]} O-O {[%emt 0:00:21]} 20. Na4 {[%emt 0:00:16]} Rae8 {[%emt 0:00:33]} 21. Kb1 {[%emt 0:01:07]} Bd8 {[%emt 0:00:19]} 22. Bd3 {[%emt 0:01:36]} (22. f3 $5 {[%cal Rf3e4]} Nf6 23. Nc5 $14) 22... Kh8 {[%emt 0:02:01] [#]} (22... Nf6 $11) 23. f3 $1 $16 {[%emt 0:00:23]} Nf6 {[%emt 0:00:02]} 24. Nc5 {[%emt 0:00:16]} Qc8 {[%emt 0:01:22]} 25. Bd2 {[%emt 0:00:34]} (25. e4 $142) 25... Nb5 {[%emt 0:00:31]} 26. Rce1 {[%emt 0:00:47]} Be7 {[%emt 0:01:09]} 27. Na4 {[%emt 0:00:20]} (27. Qc2 $16) 27... Qc7 {[%emt 0:00:17]} 28. Qc2 {[%emt 0:00:22]} Bd6 {[%emt 0:00:22]} 29. Rc1 {[%emt 0:00:08]} Re7 {[%emt 0:00:18]} 30. Rfe1 {[%emt 0:00:27]} (30. Rh1 $14) 30... Rfe8 $11 {[%emt 0:00:06]} 31. Nc5 {[%emt 0:00:03]} Bg3 {[%emt 0:00:08][%cal Ob5d4]} 32. Rf1 {[%emt 0:00:19]} Nh5 {[%emt 0:00:50]} (32... Kg8 $11) 33. Qd1 {[%emt 0:00:31][%cal Of3f4]} (33. Bxb5 $5 axb5 34. Rfd1 $11) 33... g6 {[%emt 0:01:37]} 34. e4 {[%emt 0:00:33] aiming for exd5.} Bf4 {[%emt 0:00:15]} (34... Nf4 $1 $11) 35. exd5 $16 {[%emt 0:00:10]} Ng3 {[%emt 0:00:16]} 36. Rf2 {[%emt 0:00:10]} Nxd4 {[%emt 0:00:18]} 37. Bc3 {[%emt 0:00:27]} (37. Be4 $1 $16 {Bxf4 is the strong threat.} Nde2 38. Bxf4 (38. Rxe2 Nxe2 39. Qxe2 cxd5 $15) 38... Qxf4 39. d6 (39. Rxe2 Nxe2 40. d6 Qxc1+ 41. Qxc1 Nxc1 $17) 39... Rxe4 40. Nxe4 Nxc1 41. Qd4+ (41. Nxg3 Qxg3 42. Qd4+ Kh7 $11) 41... f6 42. Qxf6+ Qxf6 43. Nxf6) 37... Be5 {[%emt 0:00:02] [#]} (37... Kh7 $11 {remains equal.} 38. Bd2 (38. Bxd4 Bxc1 39. Ne4 Nxe4 $17) 38... Kg8) 38. Bxg6 $2 {[%emt 0:00:39] A strong pair of Bishops.} Nb5 {[%emt 0:00:13]} (38... Nde2 $1 $15 39. Rxe2 Nxe2 40. Qxe2 Bxc3) 39. Bxe5+ $11 {[%emt 0:00:47]} Rxe5 {[%emt 0:00:03]} 40. Be4 $36 {[%emt 0:00:19][%mdl 2048] White has some pressure.} f5 {[%emt 0:00:11]} 41. dxc6 {[%emt 0:00:23]} (41. Bd3 $11 Rxd5 42. Qd2) 41... fxe4 $17 {[%emt 0:00:06]} 42. Qd7 $2 {[%emt 0:00:10] White does not recover from this.} (42. cxb7 $17 e3 43. Rfc2) 42... e3 $19 {[%emt 0:00:15] Black is clearly winning.} 43. Rfc2 {[%emt 0:00:09] Strongly threatening Qxc7.} bxc6 {[%emt 0:00:06]} 44. Qg4 {[%emt 0:00:06] [#]} (44. Qxc7 $142 Nxc7 45. Nd3) 44... e2 $1 {[%emt 0:00:13][%cal Oe5c5] And now ...Rxc5! would win.} 45. Nd3 {[%emt 0:00:20]} (45. Re1 Rb8) 45... e1=Q {[%emt 0:00:15] Weighted Error Value: White=0.63/Black=0.25 (precise)} 0-1

[Event "German Rapid Championship 2022"]
[Site "Goettingen"]
[Date "2022.09.25"]
[Round "8.5"]
[White "Lubbe, Nikolas"]
[Black "Laux, Dominik"]
[Result "1-0"]
[ECO "D12"]
[WhiteElo "2479"]
[BlackElo "2248"]
[Annotator "TA"]
[PlyCount "76"]
[EventDate "2022.09.24"]
[EventType "swiss"]
[EventCountry "GER"]
[SourceTitle "playchess.com"]
[Source "ChessBase"]
[SourceQuality "1"]
[TimeControl "900+10"]

{[%evp 12,76,23,21,38,13,14,24,16,13,22,0,9,13,13,2,42,25,31,18,28,18,16,22,147,28,95,47,63,35,101,105,125,56,60,27,20,0,0,0,39,40,141,136,239,195,440,51,50,43,50,48,152,141,222,213,171,126,127,78,1408,1345,29983,29984,29983,29984,29998]} 1. d4 {[%emt 0:00:02]} d5 {[%emt 0:00:11]} 2. Nf3 {[%emt 0:00:03]} Nf6 {[%emt 0:00:05]} 3. c4 {[%emt 0:00:02]} c6 {[%emt 0:00:02]} 4. e3 {[%emt 0:00:02]} Bf5 {[%emt 0:00:10]} 5. Nc3 {[%emt 0:00:03]} e6 {[%emt 0:00:02]} 6. Nh4 {[%emt 0:00:28]} Be4 {[%emt 0:00:03]} 7. f3 {[%emt 0:00:06]} Bg6 {[%emt 0:00:02] D12: Slav Defence: 3 Nf3 Nf6 4 e3 Bf5.} 8. Nxg6 {[%emt 0:00:17]} hxg6 {[%emt 0:00:02]} 9. Qb3 {[%emt 0:00:13]} Qc7 {[%emt 0:00:08] White has an edge.} 10. cxd5 {[%emt 0:00:19]} cxd5 {[%emt 0:00:28]} 11. Bd2 {[%emt 0:00:08]} Nc6 {[%emt 0:00:24]} 12. O-O-O {[%emt 0:00:09]} a6 {[%emt 0:01:19]} 13. Kb1 {[%emt 0:00:19]} Bd6 {[%emt 0:01:19]} 14. Rc1 {[%emt 0:00:38] [#]} O-O $146 {[%emt 0:01:09]} ({Predecessor:} 14... Kf8 15. Qd1 Bb4 16. Bd3 Bxc3 17. Bxc3 Rxh2 18. e4 Qg3 19. e5 Nh5 20. Qb3 Rxh1 21. Rxh1 Qxg2 22. Rxh5 gxh5 23. Qxb7 {0-1 (52) Goganov,A (2581)-Demidov,M (2523) Anapa 2021}) 15. Qd1 {[%emt 0:01:38]} e5 {[%emt 0:03:14]} 16. g4 {[%emt 0:01:22]} exd4 {[%emt 0:01:40]} 17. exd4 {[%emt 0:00:01]} Qd7 {[%emt 0:00:34]} (17... Qb6 $11) 18. Bg5 {[%emt 0:02:13]} (18. h4 $1 $16) 18... Bb4 {[%emt 0:01:28]} (18... Nh7 $11 19. Bd2 Nf6) 19. Na4 {[%emt 0:00:29]} ({White should play} 19. h4 $16) 19... Qe6 {[%emt 0:00:58]} 20. h4 {[%emt 0:00:59]} Nh7 (20... Rfe8 $14) 21. a3 $16 {[%emt 0:01:14]} Bd6 {[%emt 0:01:02]} 22. Qd2 {[%emt 0:01:10]} (22. Bd3 $16) 22... Rfe8 $14 {[%emt 0:00:46]} 23. Nb6 {[%emt 0:02:17]} Rab8 {[%emt 0:00:07]} 24. Bxa6 {[%emt 0:01:23]} Nxd4 {[%emt 0:02:06]} 25. Qxd4 {[%emt 0:01:13]} Be5 {[%emt 0:00:11]} 26. Qxd5 {[%emt 0:00:20]} Qxb6 {[%emt 0:00:03]} (26... bxa6 $14 27. Qxe6 Rxe6) 27. Bb5 $16 {[%emt 0:00:01] Active counter play!} Nxg5 {[%emt 0:01:09]} (27... Re6 $16) 28. hxg5 $18 {[%emt 0:00:03][%cal Oh1h8] And now Rh8+! would win.} Rbd8 $2 {[%emt 0:00:42] [#]} (28... Re6 29. Rcd1 Bf4) 29. Qb3 $2 {[%emt 0:00:19]} (29. Rh8+ $1 $18 {[%mdl 512]} Kxh8 30. Qxf7) 29... Rd2 $14 {[%emt 0:00:10]} 30. Rc2 {[%emt 0:00:23]} Rxc2 {[%emt 0:00:02]} 31. Kxc2 {[%emt 0:00:02] Dancing on a razor blade.} Qf2+ {[%emt 0:00:31]} ({Better is} 31... Rd8 $14) 32. Kb1 $16 {[%emt 0:00:08]} Rd8 {[%emt 0:00:08]} (32... Re7 $16 33. Rd1 Qb6) 33. Bc4 $40 {[%emt 0:00:17][%csl LRb7,LRf7][%mdl 128] White is out for blood.} Rd7 {[%emt 0:00:09]} 34. a4 {[%emt 0:00:31]} Qd2 {[%emt 0:00:14]} 35. Rc1 {[%emt 0:00:21]} (35. Ka2 $142) 35... Qxg5 {[%emt 0:00:10][%mdl 8192] [#] Loses the game.} (35... Bf4 $16 36. Rc2 (36. Bxf7+ Rxf7 37. Rc8+ Kh7 $11) 36... Qd6) 36. Bxf7+ $1 {[%emt 0:00:16][%mdl 512]} Kf8 {[%emt 0:00:01]} (36... Rxf7 37. Rc8+) 37. Rc8+ {[%emt 0:00:18]} Rd8 {[%emt 0:00:06] [#]} 38. Bg8 $1 {[%emt 0:00:20][%csl Gg8][%cal Rb3f7]} Ke7 {Weighted Error Value: White=0.31/Black=0.64} (38... Qf4 39. Rxd8+) 1-0

[Event "German Rapid Championship 2022"]
[Site "Goettingen"]
[Date "2022.09.25"]
[Round "8.6"]
[White "Hampel, Felix"]
[Black "Krastev, Alexander"]
[Result "0-1"]
[ECO "A30"]
[WhiteElo "2326"]
[BlackElo "2431"]
[Annotator "TA"]
[PlyCount "138"]
[EventDate "2022.09.24"]
[EventType "swiss"]
[EventCountry "GER"]
[SourceTitle "playchess.com"]
[Source "ChessBase"]
[SourceQuality "1"]
[TimeControl "900+10"]

{[%evp 19,138,0,5,24,21,0,17,9,9,5,46,-14,-21,-12,-15,-23,-12,-44,-52,-41,-48,-64,-42,-57,-49,-158,-174,-173,-169,-141,-56,-59,-58,-127,-123,-122,-129,-129,-119,-135,-65,-61,-52,-56,-61,-69,-48,-70,-52,-46,-50,-46,-24,-102,-102,-120,-109,-111,-108,-117,-114,-104,-120,-180,-190,-179,-164,-153,-145,-193,-142,-166,-151,-159,0,-186,-138,-152,-150,-286,-277,-260,-275,-784,-754,-29983,-29984,-2317,-593,-656,-641,-613,-607,-533,-443,-458,-443,-1116,-1081,-2106,-2027,-2002,-1730,-1785,-1239,-926,-480,-762,-465,-444,-457,-505,-514,-769,-708,-807,-823,-1291,-1248,-1193,-1182]} 1. c4 {[%emt 0:00:02]} c5 {[%emt 0:00:11]} 2. Nf3 {[%emt 0:00:02]} Nc6 {[%emt 0:00:02]} 3. Nc3 {[%emt 0:00:02]} g6 {[%emt 0:00:03]} 4. e3 {[%emt 0:00:02]} Nf6 {[%emt 0:00:02][%cal Bg8f6,Bf6d5,Bd5c3][%mdl 32]} 5. d4 {[%emt 0:00:01]} cxd4 {[%emt 0:00:01]} 6. exd4 {[%emt 0:00:01]} d5 {[%emt 0:00:01]} 7. cxd5 {[%emt 0:00:02]} Nxd5 {[%emt 0:00:01]} 8. Qb3 {[%emt 0:00:01]} Nxc3 {[%emt 0:00:02]} 9. Bc4 {[%emt 0:00:01]} e6 {[%emt 0:00:01] Nowadays more popular than 9...Nd5.} 10. bxc3 {[%emt 0:00:02]} Bd7 {[%emt 0:00:01][%cal Bc8d7,Bd7c6,Bc6d5][%mdl 32] Hoping for ...Na5.} 11. Bd3 {[%emt 0:04:06] A35: Symmetrical English: 2 Nc3 Nc6 3 Nf3.} ({Not} 11. Qxb7 $2 Rb8 12. Qa6 Rb6 $19) 11... Na5 {[%emt 0:00:16]} 12. Qc2 {[%emt 0:00:07]} Rc8 {[%emt 0:00:28]} 13. O-O {[%emt 0:00:44] The position is equal.} Bg7 {[%emt 0:02:50]} 14. Ba3 {[%emt 0:00:52] [#]} Bc6 $146 {[%emt 0:02:01]} (14... Bf8 $5 {[%cal Rf8a3]} 15. Qc1 Be7 $14) ({Predecessor:} 14... Bf8 15. Bxf8 Kxf8 16. Rfe1 Kg7 17. Rac1 Qf6 18. Ne5 Rhd8 19. Qd2 Nc6 20. Ng4 Qh4 {½-½ (78) Svane,R (2597)-Durarbayli,V (2609) Sitges 2019}) 15. Nd2 {[%emt 0:03:00]} (15. Ne5 $14) 15... Bf8 $11 {[%emt 0:01:05]} 16. Bb2 {[%emt 0:01:08][%cal Od4d5]} Bd6 {[%emt 0:01:08]} 17. c4 {[%emt 0:00:53][%cal Od4d5]} O-O {[%emt 0:00:05][%cal Oc6g2]} 18. Qc3 {[%emt 0:01:04][%cal Od4d5] [#]} Bd5 $1 $40 {[%emt 0:00:46][%cal Oa5c4][%mdl 128] Black has some attack.} 19. c5 $1 {[%emt 0:01:20]} Be7 {[%emt 0:01:20]} 20. Ne4 {[%emt 0:00:38]} Nc6 {[%emt 0:00:30]} 21. Rad1 {[%emt 0:00:46][%cal Od3c4]} f5 {[%emt 0:01:00]} 22. Nd6 {[%emt 0:00:39]} (22. Nd2 $15) 22... Bxd6 $17 {[%emt 0:02:29]} 23. cxd6 {[%emt 0:00:01]} Qg5 {[%emt 0:01:02][%csl Gd5][%cal Rg5g2]} ({And not} 23... Qxd6 24. Ba3 Qf4 25. Bxf8 Bxg2 26. Kxg2 $11) 24. f3 {[%emt 0:00:22] [#]} Rfd8 {[%emt 0:00:25]} (24... Ne5 $1 $17 {[%mdl 512]} 25. dxe5 Rxc3 26. Bxc3 Qe3+ 27. Kh1 Bxa2) 25. Bc1 $15 {[%emt 0:00:24]} Qf6 {[%emt 0:00:17]} 26. d7 {[%emt 0:01:15]} ({Better is} 26. Be2 $15) 26... Rxd7 $17 {[%emt 0:00:09]} 27. Bb5 {[%emt 0:00:02]} a6 {[%emt 0:01:16]} 28. Bxc6 {[%emt 0:00:03]} Rxc6 {[%emt 0:00:01]} 29. Qb2 {[%emt 0:00:11]} Qd8 {[%emt 0:01:13] Black is more active.} (29... Rdc7 $17 {...Rc2 is the strong threat.} 30. Rf2 g5) 30. Bf4 {[%emt 0:00:19]} Qa5 {[%emt 0:00:02]} 31. Rf2 {[%emt 0:00:09]} Qc3 {[%emt 0:00:23]} 32. Qe2 {[%emt 0:00:35]} Qa3 {[%emt 0:00:31]} 33. h4 {[%emt 0:00:09]} Qe7 {[%emt 0:00:12]} 34. Bg5 {[%emt 0:00:07]} Qg7 {[%emt 0:00:10]} 35. Qe3 {[%emt 0:00:04]} Rdc7 {[%emt 0:00:06]} 36. Rdd2 {[%emt 0:00:49]} (36. Bf4 $11) 36... Rc3 {[%emt 0:00:17]} 37. Qf4 {[%emt 0:00:06]} Rc8 {[%emt 0:00:09]} 38. Rfe2 {[%emt 0:00:52]} Qc7 {[%emt 0:00:11]} 39. Re5 {[%emt 0:00:01]} Rc1+ {[%emt 0:00:22]} 40. Kh2 {[%emt 0:00:00]} Ra1 {[%emt 0:00:07]} 41. Ree2 {[%emt 0:00:38]} (41. Qg3 $17 {might work better.}) 41... Qxf4+ $19 {[%emt 0:00:16]} ({Worse is} 41... Qc1 42. Qe5 $15) 42. Bxf4 {[%emt 0:00:01]} Kf7 {[%emt 0:00:14]} 43. Kg3 {[%emt 0:00:20]} b5 {[%emt 0:00:08]} 44. Bd6 {[%emt 0:00:10]} (44. Rb2 $17) 44... Rc4 {[%emt 0:00:15]} (44... a5 $19 45. a3 Bc4) 45. a3 {[%emt 0:00:07]} Ke8 {[%emt 0:00:17]} 46. Bc5 {[%emt 0:00:02]} Kf7 $2 {[%emt 0:00:02]} ({Black should try} 46... h6 $17 {And now ...g5 would win.} 47. Re5 Kf7) 47. Rb2 $2 {[%emt 0:00:05]} (47. Bd6 $1 $11) 47... Rc3 {[%emt 0:00:10]} ({Black should play} 47... h6 $19 48. Rbc2 Rd1 49. Rxc4 bxc4) 48. Kf4 {[%emt 0:00:33]} h6 {[%emt 0:00:05] White must now prevent ...Kf6.} 49. Bb6 {[%emt 0:00:07]} (49. Bb4 $17 {is a better defense.} Rc4 50. Ke5) 49... Raxa3 {[%emt 0:00:09]} 50. Bc5 {[%emt 0:00:08]} Ra1 {[%emt 0:00:15]} 51. Red2 $2 {[%emt 0:00:10]} (51. Ke5) 51... Kf6 {[%emt 0:00:06] ( -> ...g5+)} 52. Bb6 {[%emt 0:00:06]} g5+ {[%emt 0:00:04]} 53. Kg3 {[%emt 0:00:05]} g4 {[%emt 0:00:12]} (53... f4+ $142 54. Kg4 Rc8 55. hxg5+ hxg5) 54. Bd8+ {[%emt 0:00:06]} Kf7 {[%emt 0:00:02][%cal Rg4f3]} 55. Kf4 {[%emt 0:00:22]} gxf3 {[%emt 0:00:09]} 56. gxf3 {[%emt 0:00:05]} Rxf3+ {[%emt 0:00:13]} 57. Ke5 {[%emt 0:00:01]} Rc1 {[%emt 0:00:12]} 58. Kd6 {[%emt 0:00:12]} (58. Re2 $142) 58... Ke8 {[%emt 0:00:20]} 59. Bf6 {[%emt 0:00:03]} Rc6+ {[%emt 0:00:04]} 60. Ke5 {[%emt 0:00:02]} Re3+ {[%emt 0:00:14]} 61. Kf4 {[%emt 0:00:01]} Rcc3 {[%emt 0:00:14][%csl Gd5,Gf5][%cal Re3e4]} 62. Re2 {[%emt 0:00:02]} Rf3+ {[%emt 0:00:16]} 63. Ke5 {[%emt 0:00:01]} Kf7 {[%emt 0:00:01] Inhibits Bg7.} 64. Bd8 {[%emt 0:00:07]} Rh3 {[%emt 0:00:16]} 65. Re1 {[%emt 0:00:17]} Rc8 {[%emt 0:00:08]} 66. Bf6 {[%emt 0:00:11]} Rg3 {[%emt 0:00:04] Threatens to win with ...Rg6.} 67. Rbb1 {[%emt 0:00:25]} Rg6 {[%emt 0:00:12]} 68. Ra1 {[%emt 0:00:13]} Rxf6 {[%emt 0:00:11]} 69. Rxa6 {[%emt 0:00:01]} Rc7 {[%emt 0:00:01] Weighted Error Value: White=0.66/Black=0.23 (precise)} 0-1

[Event "German Rapid Championship 2022"]
[Site "Goettingen"]
[Date "2022.09.25"]
[Round "8.7"]
[White "Karsay, Pascal"]
[Black "Muckle, Julius"]
[Result "1-0"]
[ECO "A06"]
[WhiteElo "2269"]
[BlackElo "2401"]
[Annotator "RC"]
[PlyCount "90"]
[EventDate "2022.09.24"]
[EventType "swiss"]
[EventCountry "GER"]
[SourceTitle "playchess.com"]
[Source "ChessBase"]
[SourceQuality "1"]
[TimeControl "900+10"]

1. Nf3 {[%emt 0:00:01]} d5 {[%emt 0:00:00]} 2. e3 {[%emt 0:00:01]} Nf6 {[%emt 0:00:01]} 3. c4 {[%emt 0:00:01]} c6 {[%emt 0:00:01]} 4. Nc3 {[%emt 0:00:02]} e6 {[%emt 0:00:03]} 5. b3 {[%emt 0:00:01]} Nbd7 {[%emt 0:00:04]} 6. Qc2 {[%emt 0:00:02]} Bd6 {[%emt 0:00:11]} 7. Bb2 {[%emt 0:00:01]} O-O {[%emt 0:00:39]} 8. Be2 {[%emt 0:00:01]} e5 {[%emt 0:00:32]} 9. cxd5 {[%emt 0:00:02]} cxd5 {[%emt 0:00:01]} 10. Nb5 {[%emt 0:00:01]} Bb8 {[%emt 0:00:02]} 11. Rc1 {[%emt 0:00:01]} e4 {[%emt 0:01:00]} 12. Nfd4 {[%emt 0:00:04]} Ne5 {[%emt 0:01:09]} 13. Nc7 {[%emt 0:00:05]} Nd3+ {[%emt 0:02:45]} 14. Bxd3 {[%emt 0:00:09]} exd3 {[%emt 0:00:01]} 15. Qc5 {[%emt 0:00:15]} Bxc7 {[%emt 0:07:49]} 16. Qxc7 {[%emt 0:00:02]} Qxc7 {[%emt 0:00:36]} 17. Rxc7 {[%emt 0:00:02]} Bd7 {[%emt 0:00:02]} 18. Rxb7 {[%emt 0:00:29]} Rfc8 {[%emt 0:00:22]} 19. f3 {[%emt 0:01:05]} Bc6 {[%emt 0:00:32]} 20. Re7 {[%emt 0:01:04]} a5 {[%emt 0:00:15]} 21. Kf2 {[%emt 0:00:26]} a4 {[%emt 0:00:02]} 22. b4 {[%emt 0:00:05]} Kf8 {[%emt 0:00:29]} 23. Re5 {[%emt 0:01:33]} a3 {[%emt 0:00:35]} 24. Bc3 {[%emt 0:00:07]} Ba4 {[%emt 0:00:00]} 25. Rb1 {[%emt 0:00:41]} Re8 {[%emt 0:01:50]} 26. Rxe8+ {[%emt 0:00:07]} Kxe8 {[%emt 0:00:00]} 27. b5 {[%emt 0:00:24]} Kd7 {[%emt 0:00:08]} 28. b6 {[%emt 0:00:46]} Ne8 {[%emt 0:00:11]} 29. Bb4 {[%emt 0:00:34]} Bc2 {[%emt 0:00:25]} 30. Nxc2 {[%emt 0:00:41]} dxc2 {[%emt 0:00:01]} 31. Rc1 {[%emt 0:00:02]} Ra4 {[%emt 0:00:08]} 32. Bc3 {[%emt 0:00:39]} Kc6 {[%emt 0:00:21]} 33. Bd4 {[%emt 0:00:14]} Nd6 {[%emt 0:00:13]} 34. Rxc2+ {[%emt 0:00:03]} Kb5 {[%emt 0:00:10]} 35. Be5 {[%emt 0:00:23]} Nb7 {[%emt 0:00:03]} 36. Bd4 {[%emt 0:00:20]} Rb4 {[%emt 0:00:15]} 37. Rc7 {[%emt 0:00:28]} Ka6 {[%emt 0:00:01]} 38. Rc3 {[%emt 0:00:05]} Ra4 {[%emt 0:00:01]} 39. Rb3 {[%emt 0:00:57]} g6 {[%emt 0:00:12]} 40. Ke2 {[%emt 0:00:04]} f5 {[%emt 0:00:20]} 41. h4 {[%emt 0:00:06]} Ra5 {[%emt 0:00:16]} 42. Kd3 {[%emt 0:00:13]} Ra4 {[%emt 0:00:09]} 43. Kc2 {[%emt 0:00:26]} Rc4+ {[%emt 0:00:09]} 44. Rc3 {[%emt 0:00:07]} Ra4 {[%emt 0:00:13]} 45. Kb3 {[%emt 0:00:15]} Na5+ 1-0

[Event "German Rapid Championship 2022"]
[Site "Goettingen"]
[Date "2022.09.25"]
[Round "8.8"]
[White "Langrock, Hannes"]
[Black "Woelk, Tom-Frederic"]
[Result "0-1"]
[ECO "D02"]
[WhiteElo "2358"]
[BlackElo "2289"]
[Annotator "TA"]
[PlyCount "90"]
[EventDate "2022.09.24"]
[EventType "swiss"]
[EventCountry "GER"]
[SourceTitle "playchess.com"]
[Source "ChessBase"]
[SourceQuality "1"]
[TimeControl "900+10"]

{[%evp 11,90,0,16,7,0,8,52,34,37,37,34,22,52,52,57,9,23,8,26,-26,-14,-37,-41,-52,0,0,0,0,0,0,0,0,0,0,0,0,6,-127,-123,-118,-121,-124,-106,-99,-114,-129,-124,-130,-130,-165,-152,-133,-133,-190,-107,-110,-102,-164,-164,-294,-272,-267,-252,-273,-268,-485,-485,-446,-358,-505,-506,-506,-506,-483,-464,-483,-464,-464,-464,-465,-456]} 1. d4 {[%emt 0:00:02]} d5 {[%emt 0:00:05]} 2. Nf3 {[%emt 0:00:02]} Nf6 {[%emt 0:00:01]} 3. g3 {[%emt 0:00:02]} c6 {[%emt 0:00:13]} 4. Bg2 {[%emt 0:00:05]} Bf5 {[%emt 0:00:07]} 5. c4 {[%emt 0:00:04]} e6 {[%emt 0:00:04]} 6. Nc3 {[%emt 0:00:03]} Nbd7 {[%emt 0:00:12]} 7. Qb3 {[%emt 0:00:03] D11: Slav Defence: 3 Nf3 sidelines and 3...Nf6 4 e3 Bg4.} Qb6 {[%emt 0:00:39]} 8. c5 {[%emt 0:00:02]} Qc7 $1 {[%emt 0:00:36][%mdl 4] now scores much better than the old 8...Qxb3.} 9. Bf4 {[%emt 0:01:24] White is slightly better.} Qc8 {[%emt 0:00:01]} 10. Nh4 {[%emt 0:00:59]} Be7 {[%emt 0:00:55]} 11. O-O {[%emt 0:00:52]} O-O {[%emt 0:00:20]} 12. Nxf5 {[%emt 0:00:38]} exf5 {[%emt 0:00:02] [#]} 13. Bh3 $146 {[%emt 0:00:55]} (13. Qc2 $14) ({Predecessor:} 13. Qc2 g6 14. b4 Re8 15. b5 Bd8 16. Rab1 Bc7 17. Bh6 Ng4 18. Bd2 h5 19. Qa4 {0-1 (30) Rosner,J (2433)-Dominguez Perez,L (2758) Chess.com INT 2020}) 13... g6 $11 {[%emt 0:00:14]} 14. Qc2 {[%emt 0:00:42]} Ne4 {[%emt 0:00:49]} 15. f3 {[%emt 0:01:30]} (15. b4 $142) 15... Ng5 $1 {[%emt 0:00:08]} 16. Bxg5 {[%emt 0:01:12]} Bxg5 {[%emt 0:00:02]} 17. Qd3 {[%emt 0:01:51] Inhibits Be3+.} Re8 {[%emt 0:00:11]} ({Black should play} 17... Qe8 $15 18. f4 Bf6) 18. e4 {[%emt 0:00:44]} fxe4 {[%emt 0:04:13]} 19. fxe4 {[%emt 0:01:02]} Nxc5 $1 {[%emt 0:01:21]} 20. Bxc8 {[%emt 0:00:51][%cal Bh3c8,Bc8b7,Bb7c6][%mdl 32]} Nxd3 {[%emt 0:00:02]} 21. Bxb7 {[%emt 0:00:03]} Rab8 $36 {[%emt 0:00:26][%cal Ba8b8,Bb8b2,Bb2d2,Bd2d5,Bd5c5,Bc5c6,Bc6d6][%mdl 2080] White is under pressure.} 22. Bxc6 {[%emt 0:00:11]} Rec8 {[%emt 0:00:14]} 23. exd5 {[%emt 0:01:51]} Be3+ {[%emt 0:00:28]} 24. Kg2 {[%emt 0:01:57]} (24. Kh1 $11) 24... Rxb2+ $17 {[%emt 0:00:07]} 25. Kf3 {[%emt 0:00:09]} Bxd4 {[%emt 0:00:07] Black has more active pieces.} 26. Ke4 {[%emt 0:00:18][%csl LRd3,LRd4]} Bxc3 {[%emt 0:01:01]} 27. Kxd3 {[%emt 0:00:01]} Rd2+ {[%emt 0:00:12]} 28. Kxc3 {[%emt 0:01:00]} Rxd5 {[%emt 0:00:01]} 29. Rf6 {[%emt 0:00:12]} Rc5+ {[%emt 0:00:01]} 30. Kd3 {[%emt 0:00:19] Threatens to win with Ba4.} R8xc6 {[%emt 0:00:02]} ({Stronger than} 30... R5xc6 31. Rxc6 Rxc6 32. a4 $17) 31. Rxc6 {[%emt 0:00:00]} Rxc6 $19 {[%emt 0:00:01][%mdl 4096] Endgame KR-KR} 32. a4 {[%emt 0:00:42] [#]} (32. a3 $17) 32... Kg7 {[%emt 0:00:10]} (32... Rb6 $1 $19 {White must now prevent ...Rb2.} 33. Kc3 Kf8) 33. Rb1 $17 {[%emt 0:00:13]} Rd6+ {[%emt 0:00:16]} 34. Ke3 {[%emt 0:00:05]} (34. Kc3 $17) 34... Rb6 $19 {[%emt 0:00:07]} 35. Ra1 {[%emt 0:00:28]} (35. Rc1 $142) 35... Rb3+ {[%emt 0:00:14]} 36. Kf4 {[%emt 0:00:07]} a5 {[%emt 0:00:01]} 37. Ra2 {[%emt 0:00:06]} Kf6 {[%emt 0:00:08]} 38. h4 $2 {[%emt 0:00:17] [#]} (38. Ke4) 38... Rb4+ {[%emt 0:00:46]} 39. Kf3 {[%emt 0:00:02]} Kf5 {[%emt 0:00:42] Prevents g4+.} 40. Ra3 {[%emt 0:00:10]} (40. Rc2 $142 Rxa4 41. Rc7 Ra3+ 42. Kf2) 40... h5 {[%emt 0:00:12] Black is clearly winning.} 41. Rc3 {[%emt 0:00:10]} Rxa4 {[%emt 0:00:03]} 42. Rc5+ {[%emt 0:00:01]} Kf6 {[%emt 0:00:07]} 43. Rc6+ {[%emt 0:00:02]} Kg7 {[%emt 0:00:03]} 44. Ra6 {[%emt 0:00:02]} Ra3+ {[%emt 0:00:02]} 45. Kf4 {[%emt 0:00:02]} Ra1 {[%emt 0:00:23] Weighted Error Value: White=0.28 (precise) /Black=0.12 (very precise)} 0-1